Cogmind - Beta 10.2 @@@ ROGUE MODE // 2021.08.05 @ 10:13:00 // Halloween2020/ForbiddenLore Player: Olga Result: Self-destructed Performance ------------- Evolutions (1) 500 Regions Visited (3) 600 Robots Destroyed (5) 25 Value Destroyed (146) 146 Prototype IDs (2) 40 Alien Tech Used (0) 0 Bonus (200) 200 TOTAL SCORE: 1511 Bonus ------- Pacifist 200 Cogmind --------- Core Integrity 340/400 Matter 300/300 Energy 250/250 System Corruption 0% Temperature Cool (9) Movement Rolling (100) Location -9/Storage Parts ------- > --- POWER (1) -------- Ion Engine > --- PROPULSION (4) --- Aluminum Leg Aluminum Leg Compact Wheel > --- UTILITY (2) ------ Small Storage Unit > --- WEAPON (2) ------- Small Laser > --- INVENTORY (6) ---- Ion Engine Light Treads Light Treads Light Treads Small Laser Particle Gun Peak State ------------ > --- POWER ------------ Ion Engine > --- PROPULSION ------- Aluminum Leg Aluminum Leg Compact Wheel Compact Wheel > --- UTILITY ---------- Small Storage Unit Shield Generator > --- WEAPON ----------- Small Laser Small Laser > --- INVENTORY -------- Ion Engine Light Treads Light Treads Small Laser [Rating: 10] Favorites ----------- Power Ion Engine Engine Ion Engine Propulsion Aluminum Leg Leg Aluminum Leg Wheel Compact Wheel Utility Small Storage Unit Device Shield Generator Storage Small Storage Unit Weapon Small Laser Energy Gun Small Laser Build | -11 -10 -9 -9 ------- Run | Scr Mat Mat Sto Slots Evolved 2 | . . 2 . Power . | . . . . Propulsion 2 | . . 2 . Utility . | . . . . Weapon . | . . . . Parts Attached 9 | 6 . 3 . Power 1 | 1 . . . Engine 1 | 1 . . . Core . | . . . . Reactor . | . . . . Propulsion 4 | 2 . 2 . Treads . | . . . . Leg 2 | 2 . . . Wheel 2 | . . 2 . Hover . | . . . . Flight . | . . . . Utility 2 | 1 . 1 . Device 1 | . . 1 . Storage 1 | 1 . . . Processor . | . . . . Hackware . | . . . . Protection . | . . . . Artifact . | . . . . Weapon 2 | 2 . . . Energy Gun 2 | 2 . . . Energy Cannon . | . . . . Ballistic Gun . | . . . . Ballistic Cannon . | . . . . Launcher . | . . . . Special Weapon . | . . . . Impact Weapon . | . . . . Slashing Weapon . | . . . . Piercing Weapon . | . . . . Special Melee Weapon . | . . . . Unidentified Prototypes . | . . . . Parts Lost 3 | . . 2 1 Power . | . . . . Propulsion 1 | . . . 1 Utility 1 | . . 1 . Weapon 1 | . . 1 . Highest Loss Streak 2 | . . 2 1 Average Slot Usage (%) 88 | . 85 90 77 Engine 11 | . 14 11 11 Leg 23 | . 28 22 22 Wheel 16 | . . 22 22 Device 3 | . . 5 . Storage 11 | . 14 11 11 Energy Gun 20 | . 28 18 11 Naked Turns . | . . . . Heaviest Build 13 | 11 11 13 10 Greatest Support 32 | 20 20 32 32 Greatest Overweight (x) 3 | 3 . . . Average Overweight (x) . | . . . . Largest Inventory Capacity 6 | 6 6 6 6 Average Capacity 5 | 5 6 6 6 Most Carried 6 | 6 6 6 6 Average Carried 4 | 4 6 4 6 Final Capacity 6 | 6 6 6 6 Final Carried 6 | 6 6 6 6 Class Distribution -------------------- 100% | Mutant Dominant Class ---------------- Mutant | -10/Materials Mutant | -9/Materials Mutant | -9/Storage Resources | -11 -10 -9 -9 ----------- Run | Scr Mat Mat Sto Matter Collected 280 | 224 . 56 . Remotely . | . . . . Salvage Created 174 | . . 174 . Parts 8 | . . 8 . Haulers Intercepted . | . . . . Recyclers Shooed . | . . . . Parts Field Recycled . | . . . . Retrieved Matter . | . . . . Parts Self-Destructed . | . . . . Prevented . | . . . . Kills | -11 -10 -9 -9 ------- Run | Scr Mat Mat Sto Combat Hostiles Destroyed 5 | . . 5 . Guns 5 | . . 5 . Classes Destroyed 3 | . . 3 . Swarmer 2 | . . 2 . Grunt 2 | . . 2 . Sentry 1 | . . 1 . Best Kill Streak 5 | . . 5 . Combat Bots Only 5 | . . 5 . Max Kills in Single Turn 1 | . . 1 . Gunslinging . | . . . . Exploded . | . . . . Melee . | . . . . Uniques/NPCs Destroyed . | . . . . Combat | -11 -10 -9 -9 -------- Run | Scr Mat Mat Sto Damage Taken 327 | . . 299 28 Core 60 | . . 60 . Absorbed by Shields 100 | . . 100 . Core Remaining (%) 100 | 100 100 . . Volleys Fired 26 | . 2 24 . Largest 2 | . 2 2 . Hottest 80 | . 80 80 . Shots Fired 48 | . 4 44 . Gun 48 | . 4 44 . Cannon . | . . . . Launcher . | . . . . Special . | . . . . Kinetic . | . . . . Thermal 48 | . 4 44 . Explosive . | . . . . Electromagnetic . | . . . . Robot Hit Streak 10 | . . 10 . Robot Miss Streak 4 | . 4 3 . Penetration Max . | . . . . Secondary Targets 1 | . . 1 . Max Gunslinging Chain 1 | . . 1 . Shots Hit Robots 29 | . . 29 . Core Hits 10 | . . 10 . Critical Hits . | . . . . Critical Kills . | . . . . Critical Parts Destroyed . | . . . . Melee Attacks . | . . . . Impact . | . . . . Slashing . | . . . . Piercing . | . . . . Sneak Attacks . | . . . . Combat Hostiles . | . . . . Follow-up Attacks . | . . . . Damage Inflicted 336 | . 11 325 . Guns 330 | . 11 319 . Cannons . | . . . . Explosions . | . . . . Melee . | . . . . Ramming 6 | . . 6 . Kinetic . | . . . . Thermal 330 | . 11 319 . Explosive . | . . . . Electromagnetic . | . . . . Impact . | . . . . Slashing . | . . . . Piercing . | . . . . Highest Corruption . | . . . . Average Corruption . | . . . . Corruption Purged . | . . . . Overload Shots . | . . . . Overflow Damage . | . . . . Projectiles . | . . . . Explosions . | . . . . Melee . | . . . . Knockbacks . | . . . . Impact . | . . . . Kinetic . | . . . . Secondary . | . . . . Self-Inflicted Damage 3 | . . 3 . Shots . | . . . . Rammed 1 | . . 1 . Targets Rammed 1 | . . 1 . Kicked . | . . . . Crushed . | . . . . Highest Temperature 80 | . 36 80 . Average Temperature 31 | . 20 32 . Received Heat Transfer 68 | . . 59 9 Siege Activations . | . . . . Robots Corrupted . | . . . . Combat Hostiles . | . . . . Parts Fried . | . . . . Impact Corruptions . | . . . . Robots Melted . | . . . . Combat Hostiles . | . . . . Parts Melted 1 | . . 1 . Heat Transferred 750 | . 25 725 . Parts Sabotaged . | . . . . Parts Stolen . | . . . . Parts Stripped . | . . . . Power Chain Reactions . | . . . . Missiles Intercepted . | . . . . Alert | -11 -10 -9 -9 ------- Run | Scr Mat Mat Sto Peak Influence 152 | . 30 152 63 Initial 63 | . . 12 63 Average 40 | . 10 75 34 Maximum Alert Level . | . . . . Low Security (%) 100 | 100 100 100 100 Level 1 . | . . . . Level 2 . | . . . . Level 3 . | . . . . Level 4 . | . . . . Level 5 . | . . . . High Security . | . . . . Max Security . | . . . . Squads Dispatched 1 | . 1 . . Investigation . | . . . . Extermination . | . . . . Reinforcement 1 | . 1 . . Assault . | . . . . Garrison . | . . . . Intercept . | . . . . Construction Impeded . | . . . . Haulers Reinforced . | . . . . Stealth | -11 -10 -9 -9 --------- Run | Scr Mat Mat Sto Distress Signals 1 | . 1 . . Communications Jammed . | . . . . Distress Signals . | . . . . Times Spotted 11 | . 2 8 1 Peak Tracking Total 5 | . 4 5 2 Tactical Retreats . | . . . . Traps | -11 -10 -9 -9 ------- Run | Scr Mat Mat Sto Traps Triggered . | . . . . Indirectly . | . . . . Trap Hack Attempts . | . . . . Triggered . | . . . . Disarmed . | . . . . Reprogrammed . | . . . . Reused . | . . . . Traps Extracted . | . . . . Installed . | . . . . Triggered . | . . . . Machines | -11 -10 -9 -9 ---------- Run | Scr Mat Mat Sto Machines Disabled . | . . . . Max in Single Turn . | . . . . Machines Sabotaged . | . . . . Garrisons Compromised . | . . . . Overloaded Fab Kills . | . . . . Fab Network Shutdowns . | . . . . Hacking | -11 -10 -9 -9 --------- Run | Scr Mat Mat Sto Machines Accessed 2 | . . . 2 Terminals 2 | . . . 2 Fabricators . | . . . . Repair Stations . | . . . . Recycling Units . | . . . . Scanalyzers . | . . . . Garrison Access . | . . . . Total Hacks 8 | . . . 8 Successful 4 | . . . 4 Failed 4 | . . . 4 Catastrophic 2 | . . . 2 Database Lockouts . | . . . . Manual . | . . . . Terminals 8 | . . . 8 Fabricators . | . . . . Repair Stations . | . . . . Recycling Units . | . . . . Scanalyzers . | . . . . Garrison Access . | . . . . Terminal Hacks 4 | . . . 4 Record 1 | . . . 1 Robot Schematic 1 | . . . 1 Prototype ID Bank 1 | . . . 1 Unreport Threat 1 | . . . 1 Fabricator Hacks . | . . . . Repair Station Hacks . | . . . . Recycling Unit Hacks . | . . . . Scanalyzer . | . . . . Garrison Access Hacks . | . . . . Unauthorized Hacks . | . . . . Terminals . | . . . . Fabricators . | . . . . Repair Stations . | . . . . Recycling Units . | . . . . Scanalyzers . | . . . . Garrison Access . | . . . . Data Cores Recovered . | . . . . Used . | . . . . Hacking Detections 2 | . . . 2 Full Trace Events 2 | . . . 2 Feedback Events . | . . . . Feedback Blocked . | . . . . Robot Schematics Acquired 1 | . . . 1 Robots Built . | . . . . Matter . | . . . . Time . | . . . . Total Robot Build Rating . | . . . . Part Schematics Acquired . | . . . . Parts Built . | . . . . Matter . | . . . . Time . | . . . . Total Part Build Rating . | . . . . Parts Repaired . | . . . . Time . | . . . . Parts Recycled . | . . . . Recycled Matter . | . . . . Retrieved Matter . | . . . . Retrieved Components . | . . . . Parts Scanalyzed . | . . . . Part Schematics Acquired . | . . . . Parts Damaged . | . . . . Bothacking | -11 -10 -9 -9 ------------ Run | Scr Mat Mat Sto Used RIF Installer . | . . . . Robots Hacked . | . . . . Non-combat . | . . . . Combat . | . . . . Robot Hacks Applied . | . . . . Relay Couplers Released . | . . . . Robots Rewired . | . . . . Allies Hacked . | . . . . Hacks Repelled . | . . . . Allies | -11 -10 -9 -9 -------- Run | Scr Mat Mat Sto Total Allies . | . . . . Largest Group . | . . . . Highest-Rated Group . | . . . . Highest-Rated Ally . | . . . . Total Orders . | . . . . Ally Attacks . | . . . . Total Damage . | . . . . Kills . | . . . . Allies Corrupted . | . . . . Allies Melted . | . . . . Intel | -11 -10 -9 -9 ------- Run | Scr Mat Mat Sto Robot Analysis Total . | . . . . Derelict Logs Recovered . | . . . . Drone Launches . | . . . . Drone Recoveries . | . . . . Exploration | -11 -10 -9 -9 ------------- Run | Scr Mat Mat Sto Turns Passed 334 | 92 60 160 22 Spaces Moved 209 | 57 46 84 22 Core 24 | 24 . . . Treads . | . . . . Legs 79 | 33 46 . . Wheels 106 | . . 84 22 Hover . | . . . . Flight . | . . . . Fastest Speed 50 | 50 120 100 100 Average Speed 111 | 124 120 100 100 Slowest Speed 200 | 200 120 100 100 Overloaded Moves . | . . . . Propulsion Burnouts . | . . . . Robots Hopped . | . . . . Cave-ins Triggered . | . . . . Exploration Rate (%) 11 | 5 21 12 7 Regions Visited 3 Branch Regions 1 Pre-discovered Areas . | . . . . Known Exits Taken . | . . . . Unknown Exits Taken 3 | 1 1 1 . Scrap Searched . | . . . . Spaces Dug . | . . . . Terrain Destroyed . | . . . . Melee . | . . . . Projectile . | . . . . AOE . | . . . . Terrain Rammed . | . . . . Walls Destroyed . | . . . . Machines Disabled . | . . . . Actions | -11 -10 -9 -9 --------- Run | Scr Mat Mat Sto Total 263 | 78 47 116 22 Wait 6 | 4 . 2 . Move 206 | 56 45 83 22 Hop . | . . . . Pick Up 15 | 12 . 3 . Fast Attach . | . . . . Attach 9 | 6 . 3 . Detach . | . . . . Swap . | . . . . Drop . | . . . . Fire 26 | . 2 24 . Melee . | . . . . Ram 1 | . . 1 . Kick . | . . . . Crush . | . . . . Escape Stasis . | . . . . Rewire . | . . . . Trap . | . . . . Miscellaneous . | . . . . Route ------- -11/Scrapyard -10/Materials -9/Materials -9/Storage History --------- Turn | Location | Event 10 | -11/Scrapyard | Discovered new exit (range 16) 93 | -11/Scrapyard | Entered Materials 140 | -10/Materials | Discovered new exit (range 12) 153 | -10/Materials | Entered another Materials area 153 | -9/Materials | Evolved 2 slots: Propulsion x2 307 | -9/Materials | Build established: Mutant 310 | -9/Materials | Discovered new exit (range 3) 313 | -9/Materials | Entered Storage 335 | -9/Storage | Self-destructed Last Messages --------------- 00322_ Connecting with Terminal... 00322_ Current location identified: Storage >>Query(Complex 0b1) Primary subterranean facilities below the faux [Human] city, developed over the several decades following deployment of Project [Seraph] in 2211. Surrounding the complex are cave systems and old mining tunnels now populated by Derelicts. 00325_ Connecting with Terminal... >>Schematic(T-07 Excavator) Downloading schematic... T-07 Excavator Tier: 1 Schematic downloaded. >>Prototypes Downloading prototype IDs... Adv. Beam Cannon Aerolev Unit >>Alert(Purge) Purged threat record, alert level lowered. 00335_ Com. Wheel destroyed. Map ----- +----------------------------------------------------+ | ???????????????????????????????? | | ???????????????????????????????? | | ???????????????????????????????? | | ???????????????????????????????? | | ???????????????????????????????? | | ???????????????????????????????? | | ???????????????????????????????? | | ???????????????????????????????? | | ???????????????????????????????? | | ???????????????????????????????? | | ?????? Y ??????????????????????? | | ?????? ??????????????????????? | | ????? ??????????????????????? | | ?????# #?????????????????????? | | ?????# #?????????????????????? | | ?????# #?????????????????????? | | ?????# #?????????????????????? | | ?????# #?????????????????????? | | ?????# #?????????????????????? | | ?????# #?????????????????????? | | ?????# #???#####?????????????? | | ?????# #???#"""#?????????????? | | ?????# #####"T"###???????????? | | ?????# # !!! #???????????? | | ?????# # "" !!! #???????????? | | ?????# @ # "T !! #???????????? | | ?????# # "" #???????????? | | ?????# + """ #???????????? | | ?????# # """ #???????????? | | ?????# # """ #???????????? | | ?????# # #???????????? | | ?????# ###########???????????? | | ?????# #?????????????????????? | | ?????#####?????????????????????? | | ???????????????????????????????? | | ???????????????????????????????? | | ???????????????????????????????? | | ???????????????????????????????? | | ???????????????????????????????? | | ???????????????????????????????? | | ???????????????????????????????? | | | | | | | | | | | | | | | | | | | +----------------------------------------------------+ Best States ------------- Heat Dissipation 28 Energy Generation 10 Energy Capacity 250 Matter Stores 300 Matter Capacity 300 Sight Range 16 Terrain Scan Density 10 Evasion (%) 50 Item Schematics ----------------- None Robot Schematics ------------------ T-07 Excavator | -9/Storage | Hacked Fabricated ------------ Nothing Alien Tech Used ----------------- None Achievements -------------- None Challenges ------------ None Game ------ Seed ShieldGravmagCompressor Manual? 0 Play Time 00:06:47 Cumulative 14.4 hours Start 2021.08.05 @ 09:49:11 End 2021.08.05 @ 10:13:00 Sessions 1 Manual Loads 0 Difficulty Rogue Special Mode Halloween2020/ForbiddenLore Game No. 24 Rogue 24 Adventurer 0 Explorer 0 Win Type - Total 0 Types 0/0/0/0/0/0/0/0/0 Lore% 19 Gallery% 20 Achievement% 15 Wizard Run 0 Options --------- ASCII 1 Keyboard 0 Movement Vi Keybinds 0 Fullscreen 1 Font 24/Smallcaps Map View 76x50 Tactical HUD 1 Map Filters NONE Filters NONE Steam 1 RUN: 528dd674-6f9d-48db-bfe9-cc645bd2122e